bitfinex/quotes_BTCUSD_20251114
["timestamp","ask_amount","ask_price","bid_price","bid_amount"]
[1763137982530,0.20619832,96994.0,96993.0,0.06752]
[1763137982750,0.20619832,96994.0,96993.0,0.13827]
[1763137982959,0.20619619,96995.0,96993.0,0.13827]
[1763137983168,0.20619832,96994.0,96993.0,0.13827]
[1763137983632,0.20619427,96996.0,96994.0,0.07075]
[1763137983859,0.20619619,96995.0,96993.0,0.06752]
[1763137984059,0.20619832,96994.0,96993.0,0.06752]
[1763137984268,0.20620469,96991.0,96990.0,0.5]
[1763137984477,0.20620469,96991.0,96990.0,0.57752]
[1763137984688,0.00065171,97000.0,96999.0,0.06531]
[1763137984893,0.00065171,97000.0,96999.0,2.068781]
[1763137985102,0.00065171,97000.0,96999.0,2.003471]
[1763137985304,0.00065171,97000.0,96999.0,2.04688974]
[1763137985713,0.00065171,97000.0,96999.0,0.323]
[1763137985920,0.00065171,97000.0,96999.0,0.543724]
[1763137986126,0.00089242,97000.0,96999.0,0.543724]
[1763137986567,0.00089242,97000.0,96999.0,0.58714274]
[1763137986981,0.00089242,97000.0,96999.0,0.98914274]
[1763137987402,0.20609121,97045.0,97023.0,0.323]
[1763137987609,0.01030396,97050.0,97023.0,0.323]
[1763137987610,0.20608471,97048.0,97029.0,0.08889]
[1763137987822,0.01030396,97050.0,97029.0,0.16185]
[1763137987823,0.04828,97047.0,97029.0,0.16185]
[1763137988032,0.20632181,97030.0,97029.0,0.4141]
[1763137990135,0.20613456,97024.0,97023.0,0.00013531]
[1763137990335,0.20613456,97024.0,97023.0,0.06765531]
[1763137991947,0.0002,97030.0,97023.0,0.13840531]
[1763137992125,0.0002,97030.0,97024.0,0.323]
[1763137992265,0.0002,97030.0,97025.0,1.797498]
[1763137992473,0.0002,97030.0,97028.0,0.323]
[1763137992676,0.20632624,97030.0,97028.0,0.323]
[1763137993195,0.20632624,97030.0,97023.0,0.00013531]
[1763137993196,0.0002,97030.0,97029.0,0.46123]
[1763137993594,0.0002,97030.0,97029.0,1.42384014]
[1763137994220,0.0002,97030.0,97029.0,0.96081814]
[1763137994442,0.0002,97030.0,97029.0,0.64930014]
[1763137995047,0.0002,97030.0,97029.0,0.65906214]
[1763137995246,0.34447602,97090.0,97030.0,0.723]
[1763137995452,0.20609845,97041.0,97040.0,0.01]
[1763137995718,0.04828,97061.0,97049.0,0.0624]
[1763137996037,0.07778184,97070.0,97050.0,0.2]
[1763137996184,0.07778184,97070.0,97049.0,0.15346]
[1763137996185,0.20607721,97051.0,97049.0,0.15346]
[1763137996390,0.20607721,97051.0,97050.0,0.01]
[1763137996596,0.20605642,97061.0,97060.0,0.01]
[1763137996760,0.20605642,97061.0,97060.0,0.07748]
[1763137996961,0.20605304,97063.0,97060.0,0.07748]
[1763137997165,0.45866922,97088.0,97070.0,0.01]
[1763137997166,0.20603475,97071.0,97070.0,0.01]
[1763137997388,0.10956972,97090.0,97079.0,0.02358]
[1763137997389,0.01049972,97090.0,97079.0,0.02358]
[1763137997590,0.2060136,97081.0,97079.0,0.15346]
[1763137997791,0.07229195,97080.0,97079.0,0.00013531]
[1763137999210,0.06439223,97080.0,97079.0,0.00013531]
[1763137999507,0.07409903,97080.0,97079.0,0.00013531]
[1763137999732,0.04867779,97080.0,97079.0,0.00013531]
[1763137999925,0.07081853,97080.0,97079.0,0.00013531]
[1763138000127,0.02081853,97080.0,97079.0,0.00013531]
[1763138000601,0.06748853,97080.0,97079.0,0.00013531]
[1763138001216,0.02575195,97080.0,97079.0,0.00013531]
[1763138001392,0.2060136,97081.0,97079.0,0.00013531]
[1763138001844,0.20605598,97061.0,97060.0,0.43984828]
[1763138002053,0.20605342,97063.0,97060.0,0.50746372]
[1763138002255,0.20605528,97062.0,97060.0,0.57821372]
[1763138002463,0.20605528,97062.0,97060.0,0.50746372]
[1763138002685,0.20605528,97062.0,97061.0,0.21725214]
[1763138002892,0.20593701,97062.0,97061.0,0.21725214]
[1763138003849,0.20593701,97062.0,97061.0,0.21825214]
[1763138004050,0.26956701,97062.0,97061.0,0.15077214]
[1763138004390,0.20593701,97062.0,97061.0,0.15077214]
[1763138004571,0.26956701,97062.0,97061.0,0.15077214]
[1763138005127,0.20593701,97062.0,97061.0,0.14977214]
[1763138005330,0.27283783,97062.0,97061.0,0.14977214]
[1763138005887,0.20535783,97062.0,97061.0,0.14977214]
[1763138010411,0.20605342,97063.0,97061.0,0.16298578]
[1763138010722,0.20605317,97063.0,97060.0,0.57088472]
[1763138011009,0.06744,97086.0,97070.0,0.2]
[1763138011209,0.20603475,97071.0,97070.0,0.02939]
[1763138011413,0.20603475,97071.0,97070.0,0.07744]
[1763138011990,0.20603494,97072.0,97070.0,0.07744]
[1763138012600,0.20603494,97072.0,97070.0,0.07844]
[1763138012839,0.20603494,97072.0,97070.0,0.07744]
[1763138013240,0.20603494,97072.0,97070.0,0.07844]
[1763138013610,0.20603494,97072.0,97070.0,0.06844]
[1763138014053,0.20603494,97072.0,97070.0,0.57844]
[1763138014575,0.20603494,97072.0,97070.0,0.57744]
[1763138015058,0.20601353,97081.0,97080.0,0.01]
[1763138015273,0.20601353,97081.0,97080.0,0.07744]
[1763138015902,0.01049972,97090.0,97080.0,0.26744]
[1763138016111,0.20600813,97084.0,97081.0,0.07075]
[1763138016310,0.20623906,97089.0,97088.0,0.08379]
[1763138016544,0.20623906,97089.0,97088.0,0.09102]
[1763138018004,0.20623906,97089.0,97088.0,0.06744]
[1763138018413,0.20600716,97084.0,97083.0,0.02358]
[1763138019458,0.20600716,97084.0,97083.0,0.09102]
[1763138019875,0.20600318,97087.0,97084.0,0.39375]
[1763138020081,0.00024038,97089.0,97086.0,0.323]
[1763138020294,0.00024038,97089.0,97088.0,0.700806]
[1763138021611,0.20590738,97132.0,97103.0,0.323]
[1763138021830,0.04578,97164.0,97121.0,0.323]
[1763138021831,0.20591791,97127.0,97121.0,0.323]
[1763138022037,0.04587,97139.0,97122.0,0.06744]
[1763138022038,0.20590212,97134.0,97122.0,0.06744]
[1763138022240,0.0257379,97133.0,97118.0,0.06744]
[1763138022452,0.20593292,97119.0,97118.0,0.06744]
[1763138022851,0.20638527,97119.0,97118.0,0.46119]
[1763138023066,0.20638527,97119.0,97118.0,0.39044]
[1763138023298,0.20638527,97119.0,97118.0,0.323]
[1763138023473,0.20638527,97119.0,97118.0,0.39044]
[1763138023679,0.20595625,97108.0,97107.0,0.04717]
[1763138023915,0.20594777,97112.0,97104.0,0.06744]
[1763138024168,0.00045235,97119.0,97103.0,0.002]
[1763138024169,0.25215473,97104.0,97103.0,0.002]
[1763138024341,0.20600716,97084.0,97082.0,0.06744]
[1763138024578,0.20602414,97076.0,97075.0,0.03131]
[1763138024784,0.20602414,97076.0,97075.0,0.09875]
[1763138025411,0.20604537,97066.0,97065.0,0.43923]
[1763138025616,0.20604309,97068.0,97065.0,0.11636544]
[1763138025818,0.20603972,97069.0,97066.0,0.09321]
[1763138026034,0.206008,97084.0,97074.0,0.09152]
[1763138026243,0.04578,97091.0,97074.0,0.09152]
[1763138026244,0.20602626,97075.0,97074.0,0.03131]
[1763138026660,0.20593895,97075.0,97074.0,0.03131]
[1763138027486,0.04577,97098.0,97083.0,0.06021]
[1763138027702,0.20600929,97084.0,97083.0,0.06021]
[1763138028132,0.20598807,97093.0,97092.0,0.1042]
[1763138028582,0.20598749,97094.0,97092.0,0.1042]
[1763138028823,0.20598749,97094.0,97092.0,0.04883]
[1763138029067,0.20599231,97091.0,97090.0,0.01]
[1763138030125,0.0102976,97110.0,97100.0,0.2]
[1763138030324,0.21624994,97110.0,97109.0,0.10738]
[1763138030458,0.01029654,97120.0,97110.0,0.42]
[1763138030659,0.02573472,97145.0,97120.0,0.21]
[1763138030888,0.09475,97156.0,97120.0,0.21]
[1763138030889,0.20589264,97138.0,97129.0,0.10904]
[1763138031062,0.20590748,97131.0,97130.0,0.0774]
[1763138031436,0.00045263,97131.0,97130.0,0.0674]
[1763138032189,0.00045263,97131.0,97130.0,0.229506]
[1763138032396,0.20636011,97131.0,97130.0,0.0674]
[1763138032797,0.20636011,97131.0,97130.0,0.0774]
[1763138033031,0.20748134,97131.0,97130.0,0.0774]
[1763138033428,0.20748134,97131.0,97121.0,0.323]
[1763138033429,0.20592656,97122.0,97121.0,0.323]
[1763138033669,0.20592656,97122.0,97121.0,0.0674]
[1763138034233,0.20592656,97122.0,97120.0,0.51]
[1763138034436,0.20592656,97122.0,97120.0,0.5774]
[1763138034638,0.20592656,97122.0,97121.0,0.001]
[1763138035062,0.04272,97121.0,97120.0,0.5]
[1763138036650,0.06846108,97121.0,97120.0,0.5]
[1763138037063,0.04272,97121.0,97120.0,0.5]
[1763138037266,0.05492549,97121.0,97120.0,0.5]
[1763138037467,0.06684764,97121.0,97120.0,0.5]
[1763138038277,0.20592656,97122.0,97120.0,0.5]
[1763138038483,0.27332656,97122.0,97120.0,0.5]
[1763138038692,0.02617108,97121.0,97120.0,0.5]
[1763138038892,0.00043,97121.0,97120.0,0.5]
[1763138039143,0.27332656,97122.0,97120.0,0.5]
[1763138039970,0.20592656,97122.0,97120.0,0.51]
[1763138040169,0.20592656,97122.0,97120.0,0.50999963]
[1763138040877,0.20592656,97122.0,97120.0,0.01]
[1763138041636,0.2059308,97120.0,97119.0,0.16398]
[1763138041864,0.20594777,97112.0,97111.0,0.04717]
[1763138042072,0.20594777,97112.0,97100.0,0.80778187]
[1763138042073,0.01029548,97130.0,97120.0,0.062]
[1763138042277,0.20592868,97121.0,97120.0,0.072]
[1763138042521,0.20594777,97112.0,97110.0,0.5]
[1763138042684,0.13071,97111.0,97110.0,0.5]
[1763138043068,0.20594777,97112.0,97111.0,0.04717]
[1763138043836,0.20594777,97112.0,97110.0,0.5]
[1763138045179,0.00091,97111.0,97110.0,0.5]
[1763138045354,0.06831,97111.0,97110.0,0.5]
[1763138046562,0.20594777,97112.0,97110.0,0.5]
[1763138046834,0.0674,97111.0,97110.0,0.5]
[1763138047017,0.06876,97111.0,97110.0,0.5]
[1763138047225,0.0674,97111.0,97110.0,0.5]
[1763138047446,0.06876,97111.0,97110.0,0.5]
[1763138047665,0.06876,97111.0,97110.0,0.01633655]
[1763138047875,0.20602839,97074.0,97073.0,0.53131]
[1763138048109,0.20602839,97074.0,97073.0,0.45089]
[1763138048344,0.20602839,97074.0,97073.0,0.09871]
[1763138048563,0.04787,97103.0,97090.0,0.02]
[1763138048793,0.20599231,97091.0,97090.0,0.01]
[1763138049015,0.20599231,97091.0,97090.0,0.01013544]
[1763138049224,0.41188476,97115.0,97090.0,0.01013544]
[1763138049225,0.21627281,97100.0,97099.0,0.06438]
[1763138049450,0.03599,97132.0,97100.0,0.4]
[1763138049661,0.01029442,97140.0,97120.0,0.01]
[1763138049662,0.20592868,97121.0,97120.0,0.01]
[1763138049875,0.2059271,97122.0,97119.0,0.0674]
[1763138050115,0.20591172,97129.0,97128.0,0.1047]
[1763138050320,0.20591172,97129.0,97128.0,0.03818]
[1763138050520,0.01029442,97140.0,97130.0,0.21]
[1763138050785,0.21618706,97140.0,97138.0,0.06652]
[1763138051004,0.00054263,97139.0,97138.0,0.13392]
[1763138051223,0.00187732,97139.0,97138.0,0.22973]
[1763138051444,0.00187732,97139.0,97138.0,0.13392]
[1763138051445,0.20776784,97139.0,97138.0,0.13392]
[1763138051686,0.00187732,97139.0,97138.0,0.13392]
[1763138052165,0.00187732,97139.0,97138.0,0.0674]
[1763138052611,0.00187732,97139.0,97138.0,1.792117]
[1763138052824,0.0002,97190.0,97152.0,0.323]
[1763138053037,0.20584556,97161.0,97159.0,0.0623]
[1763138053247,0.20585633,97156.0,97152.0,0.00013544]
[1763138053459,0.20585873,97154.0,97152.0,0.00013544]
[1763138053674,0.0257326,97153.0,97152.0,0.00013544]
[1763138054296,0.0931326,97153.0,97152.0,0.00013544]
[1763138054540,0.0931326,97153.0,97152.0,0.00113544]
[1763138055384,0.20588628,97141.0,97140.0,0.49999928]
[1763138055594,0.27328628,97141.0,97140.0,0.00013552]
[1763138057532,0.20588628,97141.0,97140.0,0.00013552]
[1763138057890,0.27324628,97141.0,97140.0,0.00013552]
[1763138058097,0.20587633,97146.0,97141.0,0.09581]
[1763138058319,0.0104923,97160.0,97141.0,0.09581]
[1763138058320,0.0002,97160.0,97150.0,0.22]
[1763138058520,0.20586933,97149.0,97148.0,0.0482]
[1763138058748,0.20586646,97151.0,97148.0,0.0482]
[1763138058949,0.0002,97160.0,97150.0,0.2]
[1763138059150,0.0002,97160.0,97159.0,0.06652]
[1763138059563,0.0002,97160.0,97159.0,0.16233]
[1763138060113,0.0002,97160.0,97159.0,0.292318]
[1763138060350,0.0002,97160.0,97159.0,0.16333]
[1763138060569,0.0002,97160.0,97159.0,0.16233]
[1763138060869,0.0002,97160.0,97159.0,0.543012]
[1763138061434,0.0002,97160.0,97159.0,0.529506]
[1763138061854,0.0002,97160.0,97159.0,0.41981]
[1763138062053,0.0002,97160.0,97159.0,0.06836]
[1763138062867,0.0002,97160.0,97159.0,0.06736]
[1763138063310,0.0002,97160.0,97159.0,0.06836]
[1763138063501,0.0002,97160.0,97159.0,0.773866]
[1763138063676,0.0002,97160.0,97159.0,0.739061]
[1763138064282,0.0002,97160.0,97159.0,0.574283]
[1763138064599,0.0002,97160.0,97159.0,0.575283]
[1763138064967,0.0002,97160.0,97159.0,0.5857648]
[1763138065914,0.0002,97160.0,97159.0,0.506923]
[1763138066118,0.0002,97160.0,97159.0,0.574283]
[1763138066494,0.0002,97160.0,97159.0,0.975283]
[1763138066695,0.0002,97160.0,97159.0,0.974283]
[1763138067098,0.0002,97160.0,97159.0,0.976283]
[1763138067458,0.0002,97160.0,97159.0,0.974283]
[1763138067459,4.726e-05,97160.0,97159.0,0.974283]
[1763138067670,4.726e-05,97160.0,97159.0,0.975283]
[1763138067879,0.21627279,97190.0,97159.0,0.975283]
[1763138067880,4.726e-05,97170.0,97159.0,1.01870174]
[1763138068090,0.0002,97190.0,97189.0,0.43105]
[1763138068263,0.0002,97190.0,97189.0,2.49841]
[1763138068495,0.0002,97190.0,97189.0,1.879006]
[1763138069316,0.0002,97190.0,97189.0,1.92256026]
[1763138069781,0.00156033,97190.0,97189.0,1.92256026]
[1763138069993,0.00156033,97190.0,97189.0,2.32256026]
[1763138070419,0.00156033,97190.0,97189.0,2.32356026]
[1763138070626,0.00156033,97190.0,97189.0,2.32256026]
[1763138071071,0.00156033,97190.0,97189.0,2.32456026]
[1763138072474,0.00156033,97190.0,97189.0,2.32256026]
[1763138072958,0.00156033,97190.0,97189.0,2.32456026]
[1763138073324,0.00156033,97190.0,97189.0,2.21378152]
[1763138073527,0.00156033,97190.0,97189.0,0.44166552]
[1763138073799,0.00156033,97190.0,97189.0,0.10898552]
[1763138073917,0.00156033,97190.0,97189.0,0.11098552]
[1763138074127,0.00156033,97190.0,97189.0,0.43198552]
[1763138074525,0.00156033,97190.0,97189.0,0.43398552]
[1763138074941,0.00156033,97190.0,97189.0,0.58100352]
[1763138075788,0.00156033,97190.0,97189.0,0.57900352]
[1763138075988,0.20734281,97190.0,97189.0,0.43298552]
[1763138076389,0.20734281,97190.0,97189.0,0.36566552]
[1763138076589,0.20734281,97190.0,97189.0,0.58305452]
[1763138077176,0.20734281,97190.0,97189.0,0.43298552]
[1763138077549,0.01048489,97230.0,97201.0,0.323]
[1763138077748,0.20589914,97230.0,97229.0,0.10889]
[1763138077981,0.20589914,97230.0,97202.0,0.09047399]
[1763138077982,0.0002,97230.0,97216.0,0.04695]
[1763138078184,0.08441,97229.0,97209.0,0.04695]
[1763138078334,0.20573615,97212.0,97210.0,0.43886902]
[1763138078551,0.20573615,97212.0,97210.0,0.07732]
[1763138078951,0.20573615,97212.0,97210.0,0.07745552]
[1763138079745,0.20573615,97212.0,97210.0,0.01013552]
[1763138079946,0.11720475,97214.0,97210.0,0.01013552]
[1763138080200,0.20573615,97212.0,97210.0,0.01013552]
[1763138081656,0.00084,97211.0,97210.0,0.00013552]
[1763138083307,0.00139986,97211.0,97210.0,0.00013552]
[1763138083948,0.00139986,97211.0,97210.0,1e-08]
[1763138084958,0.06871986,97211.0,97210.0,1e-08]
[1763138085579,0.09443711,97211.0,97210.0,1e-08]
[1763138085789,0.08334186,97211.0,97210.0,1e-08]
[1763138086425,0.08933848,97211.0,97210.0,1e-08]
[1763138086632,0.08195511,97211.0,97210.0,1e-08]
[1763138087032,0.01463511,97211.0,97210.0,1e-08]
[1763138087230,0.09218961,97211.0,97210.0,1e-08]
[1763138087576,0.09443711,97211.0,97210.0,1e-08]
[1763138087818,0.20578037,97191.0,97190.0,0.00900001]
[1763138088016,0.27310037,97191.0,97190.0,0.00013552]
[1763138088224,0.27394037,97191.0,97190.0,0.00013552]
[1763138090617,0.27394037,97191.0,97170.0,0.01314797]
[1763138090618,0.00084,97191.0,97170.0,0.2]
[1763138090832,0.04623,97171.0,97170.0,0.0001356]
[1763138091037,0.25205484,97171.0,97170.0,1e-08]
[1763138091245,0.31937484,97171.0,97170.0,1e-08]
[1763138092863,0.20586297,97152.0,97140.0,0.5]
[1763138092991,0.27397297,97152.0,97151.0,0.00160829]
[1763138093445,0.27397297,97152.0,97151.0,1e-08]
[1763138093814,0.27397297,97152.0,97128.0,0.04278]
[1763138093815,0.2059308,97120.0,97119.0,0.04695]
[1763138094018,0.2059308,97120.0,97100.0,0.76154902]
[1763138094019,0.2059414,97115.0,97114.0,0.04695]
[1763138094243,0.2059414,97115.0,97100.0,0.56154902]
[1763138094244,0.20595413,97109.0,97100.0,0.2]
[1763138094417,0.20595201,97110.0,97108.0,0.04533263]
[1763138094628,0.06732,97129.0,97120.0,0.2]
[1763138094822,0.04924,97132.0,97117.0,0.06194]
[1763138094823,0.20593504,97118.0,97117.0,0.10889]
[1763138095078,0.20593504,97118.0,97108.0,0.04533263]
[1763138095079,0.20595413,97109.0,97108.0,0.04533263]
[1763138095523,0.20594627,97113.0,97108.0,0.13826263]
[1763138095737,0.20592868,97121.0,97110.0,0.2]
[1763138095947,0.20592868,97121.0,97120.0,0.01]
[1763138096577,0.20592868,97121.0,97119.0,0.04695]
[1763138096752,0.20591969,97126.0,97120.0,0.2]
[1763138096907,0.20592741,97122.0,97120.0,0.11193001]
[1763138097108,0.20592741,97122.0,97120.0,0.09293]
[1763138097530,0.20592741,97122.0,97120.0,0.59293]
[1763138098326,0.20592741,97122.0,97120.0,0.51]
[1763138098499,0.05035,97121.0,97120.0,0.5]
[1763138098655,0.04924,97121.0,97120.0,0.501]
[1763138098864,0.04924,97121.0,97120.0,0.5]
[1763138099097,0.04924,97121.0,97120.0,0.501]
[1763138099469,0.04924,97121.0,97120.0,0.5]
[1763138100893,0.05035,97121.0,97120.0,0.00373006]
[1763138101098,0.20595413,97109.0,97108.0,0.00045263]
[1763138101308,0.33350413,97109.0,97108.0,0.00045263]
[1763138101559,0.20595413,97109.0,97108.0,0.00045263]
[1763138101969,0.04536,97127.0,97110.0,0.2]
[1763138102170,0.20594888,97112.0,97108.0,0.00045263]
[1763138102420,0.2059476,97113.0,97108.0,0.00045263]
[1763138102633,0.20594989,97111.0,97108.0,0.09051263]
[1763138102882,0.30885599,97133.0,97120.0,0.21]
[1763138103079,0.20592868,97121.0,97120.0,0.01]
[1763138103298,0.20592054,97125.0,97120.0,0.2]
[1763138103517,0.21620508,97130.0,97129.0,0.04486]
[1763138105016,0.21618494,97140.0,97130.0,0.20900001]
[1763138105226,0.21618494,97140.0,97130.0,0.30906001]
[1763138105227,0.20590748,97131.0,97130.0,0.30906001]
[1763138105445,0.20590748,97131.0,97129.0,0.04486]
[1763138105651,0.20590748,97131.0,97130.0,0.01]
[1763138105850,0.20592868,97121.0,97120.0,0.01]
[1763138106379,0.2059202,97125.0,97120.0,0.01]
[1763138106380,0.1177963,97125.0,97120.0,0.00082748]
[1763138106580,0.20593292,97119.0,97118.0,0.06736]
[1763138107228,0.20590748,97131.0,97130.0,0.01]
[1763138107437,0.20590748,97131.0,97130.0,0.011]
[1763138107645,0.20590748,97131.0,97130.0,0.01]
[1763138108291,0.20590748,97131.0,97129.0,0.04486]
[1763138108934,0.09058,97165.0,97140.0,0.2]
[1763138109191,0.20588613,97142.0,97141.0,0.06736]
[1763138109397,0.20586119,97153.0,97141.0,0.16621]
[1763138109596,0.20586509,97151.0,97150.0,0.03511]
[1763138109769,0.2058439,97161.0,97160.0,0.01]
[1763138110278,0.20591384,97161.0,97160.0,0.01]
[1763138110682,0.20591384,97161.0,97150.0,0.26736]
[1763138110683,6.994e-05,97161.0,97159.0,0.06736]
[1763138110929,6.994e-05,97161.0,97160.0,0.10455]
[1763138111149,6.994e-05,97161.0,97152.0,0.04487]
[1763138111150,0.2058585,97155.0,97152.0,0.04487]
[1763138111367,0.20586085,97153.0,97152.0,0.04487]
[1763138111567,6.994e-05,97161.0,97153.0,0.06736]
[1763138111719,6.994e-05,97161.0,97153.0,0.16621]
[1763138112067,6.994e-05,97161.0,97154.0,0.327788]
[1763138112266,0.20585071,97158.0,97154.0,0.426638]
[1763138112473,0.20585461,97156.0,97154.0,0.09885]
[1763138112688,0.20585461,97156.0,97152.0,0.04487]
[1763138112689,0.20586085,97153.0,97152.0,0.04487]
[1763138112895,0.20586085,97153.0,97152.0,0.11223]
[1763138113085,0.20586509,97151.0,97150.0,0.01]
[1763138113283,0.20586509,97151.0,97142.0,0.04153]
[1763138113284,0.20588205,97143.0,97142.0,0.04153]
[1763138113770,0.20590748,97131.0,97130.0,0.205858]
[1763138114993,0.20590748,97131.0,97130.0,0.20599376]
[1763138115195,0.20590748,97131.0,97130.0,0.50013576]
[1763138115404,0.20673748,97131.0,97130.0,0.50013576]
[1763138116224,0.20599019,97092.0,97091.0,0.54487]
[1763138116426,0.20599019,97092.0,97091.0,0.06736]
[1763138117809,0.2059777,97098.0,97091.0,0.06836]
[1763138118038,0.2059711,97101.0,97100.0,0.0762]
[1763138118233,0.2059711,97101.0,97100.0,0.07736]
[1763138118583,0.20598595,97094.0,97093.0,0.323]
[1763138118788,0.04777,97095.0,97090.0,0.01]
[1763138118936,0.20599019,97092.0,97091.0,0.001]
[1763138119545,0.23998019,97092.0,97091.0,0.001]
[1763138119739,0.20599019,97092.0,97091.0,0.001]
[1763138119954,0.23998019,97092.0,97091.0,0.001]
[1763138120153,0.23998019,97092.0,97090.0,0.0001358]
[1763138120357,0.20599019,97092.0,97090.0,0.0001358]
[1763138120886,0.03399,97091.0,97090.0,0.0001358]
[1763138122134,0.03399,97091.0,97051.0,0.5]
[1763138122135,0.20607509,97052.0,97051.0,0.5]
[1763138122335,0.20607509,97052.0,97051.0,0.50013583]
[1763138123080,0.24006509,97052.0,97051.0,0.50013583]
[1763138123283,0.20607509,97052.0,97051.0,0.50013583]
[1763138123463,0.20607509,97052.0,97051.0,0.00013583]
[1763138123671,0.04938,97072.0,97060.0,0.05998]
[1763138124019,0.04938,97072.0,97051.0,0.00013583]
[1763138124020,0.20607509,97052.0,97051.0,0.00013583]
[1763138124227,0.20607509,97052.0,97051.0,0.06749583]
[1763138124458,0.20607509,97052.0,97051.0,0.07016701]
[1763138124667,0.20697509,97052.0,97051.0,0.00280701]
[1763138125097,0.20611015,97036.0,97031.0,0.174341]
[1763138125233,0.20609845,97041.0,97040.0,0.01]
[1763138125429,0.20614031,97022.0,97021.0,0.150577]
[1763138125732,0.20614031,97022.0,97020.0,0.0104]
[1763138125937,0.20614031,97022.0,97021.0,0.06736]
[1763138126217,0.20613649,97024.0,97020.0,0.07776]
[1763138126394,0.20613883,97022.0,97020.0,0.07776]
[1763138126889,0.20613916,97022.0,97020.0,0.07776]
[1763138127091,0.20613916,97022.0,97021.0,0.001]
[1763138127291,0.20613916,97022.0,97021.0,0.04153]
[1763138127833,0.06736,97044.0,97021.0,0.04153]
[1763138128035,0.04938,97045.0,97030.0,0.60663653]
[1763138128259,0.20609714,97042.0,97040.0,0.01]
[1763138128461,0.20609714,97042.0,97040.0,0.0674]
[1763138128791,0.20613436,97025.0,97021.0,0.169176]
[1763138128994,0.04938,97045.0,97030.0,0.01]
[1763138128995,0.20611502,97034.0,97030.0,0.01]
[1763138129178,0.20611691,97033.0,97031.0,0.0674]
[1763138129578,0.30910595,97055.0,97040.0,0.01]
[1763138129900,0.2062363,97041.0,97040.0,0.0774]
[1763138130276,0.00013573,97041.0,97040.0,0.0674]
[1763138130619,0.00013573,97041.0,97040.0,0.0774]
[1763138130830,0.00013573,97041.0,97040.0,0.0674]
[1763138131692,0.00013573,97041.0,97040.0,1.303582]
[1763138131895,0.00013573,97041.0,97040.0,1.244149]
[1763138133349,0.00013573,97041.0,97040.0,1.644149]
[1763138133664,0.00013573,97041.0,97040.0,1.460408]
[1763138133878,0.00013573,97041.0,97040.0,1.488334]
[1763138134081,0.00013573,97041.0,97040.0,1.247461]
[1763138134278,0.00013573,97041.0,97040.0,0.724]
[1763138134481,0.00013573,97041.0,97040.0,0.324]
[1763138134689,0.00013573,97041.0,97040.0,0.0784]
[1763138135727,0.00013573,97041.0,97040.0,0.0774]
[1763138136191,0.00013573,97041.0,97040.0,0.07769401]
[1763138136384,0.00013573,97041.0,97040.0,0.01129401]
[1763138136718,0.00013573,97041.0,97040.0,0.07869401]
[1763138136964,0.06407573,97041.0,97040.0,0.00129401]
[1763138137428,0.00013573,97041.0,97040.0,0.01129401]
[1763138138151,0.00013573,97041.0,97040.0,1.95320801]
[1763138138285,0.00013573,97041.0,97040.0,1.19703201]
[1763138138661,0.00013573,97041.0,97040.0,1.24045075]
[1763138138882,0.09388,97099.0,97040.0,1.24045075]
[1763138138883,0.09388,97113.0,97080.0,0.01900001]
[1763138139116,0.20600412,97086.0,97081.0,0.0674]
[1763138139361,0.20601077,97083.0,97081.0,0.0674]
[1763138139572,0.20601077,97083.0,97081.0,0.4674]
[1763138140245,0.20600629,97085.0,97081.0,0.4674]
[1763138140445,0.20600121,97087.0,97081.0,0.4674]
[1763138140677,0.00161005,97090.0,97082.0,0.144258]
[1763138140881,0.20600929,97083.0,97082.0,0.644258]
[1763138141084,0.20600929,97083.0,97082.0,0.618344]
[1763138141690,0.2076051,97090.0,97082.0,0.618344]
[1763138141832,0.20599837,97089.0,97082.0,0.618344]
[1763138142040,0.20600504,97085.0,97084.0,0.173845]
[1763138142348,0.20600504,97085.0,97083.0,0.323]
[1763138142561,0.00161005,97090.0,97084.0,0.223713]
[1763138142752,0.00161005,97090.0,97086.0,0.310402]
[1763138142955,0.00161005,97090.0,97085.0,0.323]
[1763138143209,0.00161005,97090.0,97087.0,0.323]
[1763138143409,0.00161005,97090.0,97089.0,0.637674]
[1763138144675,0.00161005,97090.0,97089.0,1.037674]
[1763138144885,0.00161005,97090.0,97089.0,0.908041]
[1763138146233,0.20760448,97090.0,97089.0,0.908041]
[1763138146436,0.00161005,97090.0,97089.0,0.908041]
[1763138147423,0.00161005,97090.0,97089.0,0.7904]
[1763138147626,0.00161005,97090.0,97089.0,1.07696]
[1763138148775,0.00161005,97090.0,97089.0,1.00956]
[1763138148995,0.00161005,97090.0,97089.0,1.07696]
[1763138149372,0.00161005,97090.0,97089.0,0.7904]
[1763138149631,0.00161005,97090.0,97089.0,0.937695]
[1763138149807,0.00161005,97090.0,97089.0,0.938895]
[1763138150031,0.00161005,97090.0,97089.0,0.7904]
[1763138150299,0.00161005,97090.0,97089.0,0.981101]
[1763138150557,0.00161005,97090.0,97089.0,0.7904]
[1763138150760,0.00161005,97090.0,97089.0,0.941414]
[1763138151103,0.20760448,97090.0,97089.0,0.941414]
[1763138151308,0.00161005,97090.0,97089.0,0.98604]
[1763138151708,0.00161005,97090.0,97089.0,0.986]
[1763138151927,0.01029336,97150.0,97130.0,0.21]
[1763138152192,0.20588274,97143.0,97141.0,0.323]
[1763138152396,0.20588274,97143.0,97114.0,0.0100202]
[1763138152397,0.01029442,97140.0,97102.0,0.03088445]
[1763138152690,0.20590748,97131.0,97130.0,0.01]
[1763138152871,0.08967552,97142.0,97130.0,0.01]
[1763138152872,0.04751,97160.0,97140.0,0.01]
[1763138153021,0.20586616,97151.0,97141.0,0.06736]
[1763138153230,0.00045229,97150.0,97141.0,0.39036]
[1763138153673,0.20587838,97145.0,97141.0,0.39036]
[1763138153880,0.00045229,97150.0,97141.0,0.39036]
[1763138153881,0.20587343,97148.0,97141.0,0.39036]
[1763138154084,0.20587357,97149.0,97141.0,0.39036]
[1763138154282,0.20588066,97144.0,97141.0,0.06736]
[1763138154479,0.20586933,97149.0,97136.0,0.323]
[1763138154800,0.20587854,97145.0,97143.0,0.323]
[1763138156213,0.00045229,97150.0,97141.0,0.323]
[1763138156415,0.20587781,97145.0,97144.0,0.06736]
[1763138156823,0.00045229,97150.0,97144.0,0.06736]